Cogmind - Beta 13 @@@ ROGUE MODE // 2024.03.31 @ 23:05:57 Player: oberon720 Result: Self-destructed Performance ------------- Evolutions (2) 1000 Regions Visited (4) 800 Robots Destroyed (51) 255 Value Destroyed (1264) 1264 Prototype IDs (3) 60 Alien Tech Used (0) 0 Bonus (0) 0 TOTAL SCORE: 3379 Bonus ------- None Cogmind --------- Core Integrity 115/550 Matter 14/300 Energy 51/100 System Corruption 0% Temperature Cool (0) Movement Core (400) Ox7 Location -8/Materials Parts ------- > --- POWER (1) -------- (None) > --- PROPULSION (3) --- (None) > --- UTILITY (5) ------ Improved Heat Sink Large Storage Unit ECM Suite System Shield > --- WEAPON (2) ------- (None) > --- INVENTORY (15) --- ECM Suite ECM Suite ECM Suite Hacking Suite Hacking Suite Hacking Suite Hacking Suite System Shield System Shield Recalibrator Recalibrator Peak State ------------ > --- POWER ------------ Ion Engine > --- PROPULSION ------- Advanced Treads Advanced Treads Advanced Treads > --- UTILITY ---------- Large Storage Unit ECM Suite System Shield System Shield System Shield > --- WEAPON ----------- Light Assault Rifle Grenade Launcher > --- INVENTORY -------- Advanced Treads Improved Heat Sink ECM Suite ECM Suite ECM Suite Light Armor Plating Hacking Suite Hacking Suite Hacking Suite Hacking Suite System Shield System Shield Recalibrator Datajack [Rating: 26] Favorites ----------- Power Light Ion Engine Engine Light Ion Engine Propulsion Advanced Treads Treads Advanced Treads Leg Aluminum Leg Utility System Shield Device Improved Terrain Scanner Storage Large Storage Unit Hackware System Shield Protection Light Armor Plating Weapon Light Assault Rifle Ballistic Gun Light Assault Rifle Launcher Grenade Launcher Special Melee Weapon Datajack Build | -11 -10 -9 -9 -8 ------- Run | Yrd Mat Mat Min Mat Slots Evolved 4 | . . 2 . 2 Power . | . . . . . Propulsion 1 | . . . . 1 Utility 3 | . . 2 . 1 Weapon . | . . . . . Parts Attached 43 | 8 12 13 . 10 Power 3 | 1 1 1 . . Engine 3 | 1 1 1 . . Core . | . . . . . Reactor . | . . . . . Propulsion 11 | 2 3 2 . 4 Treads 8 | 2 . 2 . 4 Leg 3 | . 3 . . . Wheel . | . . . . . Hover . | . . . . . Flight . | . . . . . Utility 17 | 3 5 6 . 3 Device 8 | 2 2 2 . 2 Storage 2 | 1 1 . . . Processor . | . . . . . Hackware 3 | . . 3 . . Protection 4 | . 2 1 . 1 Artifact . | . . . . . Weapon 12 | 2 3 4 . 3 Energy Gun . | . . . . . Energy Cannon . | . . . . . Ballistic Gun 7 | 2 2 2 . 1 Ballistic Cannon . | . . . . . Launcher 4 | . 1 2 . 1 Special Weapon . | . . . . . Impact Weapon . | . . . . . Slashing Weapon . | . . . . . Piercing Weapon . | . . . . . Special Melee Weapon 1 | . . . . 1 Unidentified Prototypes . | . . . . . Parts Lost 13 | . 2 2 . 9 Power 2 | . 1 . . 1 Propulsion 5 | . 1 1 . 3 Utility 2 | . . . . 2 Weapon 4 | . . 1 . 3 Highest Loss Streak 7 | . 2 2 . 7 To Critical Strikes . | . . . . . Average Slot Usage (%) 97 | . 99 98 100 91 Engine 11 | . 13 11 11 8 Treads 13 | . 5 18 22 24 Leg 12 | . 22 2 . . Device 10 | . 13 10 . 9 Storage 12 | . 14 11 11 9 Hackware 11 | . . 17 33 26 Protection 1 | . . 5 . . Ballistic Gun 15 | . 21 11 11 7 Launcher 8 | . 6 10 11 6 Naked Turns . | . . . . . Heaviest Build 35 | 14 28 35 29 31 Greatest Support 66 | 40 40 44 44 66 Greatest Overweight (x) 7 | . 1 3 . 7 Average Overweight (x) . | . . . . . Largest Inventory Capacity 15 | 8 15 15 15 15 Average Capacity 13 | 7 13 15 15 15 Most Carried 15 | 5 13 15 15 15 Average Carried 11 | . 8 13 15 13 Final Capacity 15 | 8 15 15 15 15 Final Carried 15 | . 13 15 15 11 Class Distribution -------------------- 48% | Scavenger-Mutant 35% | Hacker-Mutant 15% | Mutant Dominant Class ---------------- Scavenger-Mutant | -10/Materials Hacker-Mutant | -9/Materials Hacker-Mutant | -9/Mines Hacker-Mutant | -8/Materials Resources | -11 -10 -9 -9 -8 ----------- Run | Yrd Mat Mat Min Mat Matter Collected 1099 | 267 510 161 154 7 Remotely . | . . . . . Salvage Created 1209 | 58 460 410 208 73 Parts 84 | 7 29 32 6 10 Haulers Intercepted . | . . . . . Recyclers Shooed 1 | . . 1 . . Parts Field Recycled . | . . . . . Retrieved Matter . | . . . . . Parts Self-Destructed . | . . . . . Prevented . | . . . . . Kills | -11 -10 -9 -9 -8 ------- Run | Yrd Mat Mat Min Mat Combat Hostiles Destroyed 35 | . 9 16 5 5 Guns 7 | . 7 . . . AOE 28 | . 2 16 5 5 Classes Destroyed 9 | 1 6 2 . . Worker 1 | . . 1 . . Builder 5 | . 1 4 . . Tunneler 2 | 2 . . . . Recycler 2 | . 2 . . . Operator 2 | . 1 1 . . Watcher 4 | . 3 1 . . Swarmer 9 | . 2 4 . 3 Grunt 22 | . 7 10 5 . Sentry 4 | . . 2 . 2 Best Kill Streak 7 | 1 6 7 3 5 Combat Bots Only 5 | . 5 4 3 5 Max Kills in Single Turn 3 | 1 2 3 2 2 Gunslinging . | . . . . . Exploded 3 | . 1 3 2 2 Melee . | . . . . . Uniques/NPCs Destroyed . | . . . . . Combat | -11 -10 -9 -9 -8 -------- Run | Yrd Mat Mat Min Mat Hostile Shots Fired 264 | . 83 37 3 141 Missed 79 | . 28 10 2 39 Damage Taken 2726 | . 684 452 23 1567 Core 533 | . 69 29 . 435 Absorbed by Shields . | . . . . . Regen/Repaired (Parts) 204 | . . . . 204 Core Remaining (%) 88 | 100 72 . 92 . Volleys Fired 94 | 7 39 27 5 16 Largest 2 | 2 2 2 1 1 Hottest 53 | 40 40 53 30 30 Shots Fired 129 | 14 66 28 5 16 Gun 75 | 14 54 1 . 6 Cannon . | . . . . . Launcher 54 | . 12 27 5 10 Special . | . . . . . Kinetic 75 | 14 54 1 . 6 Thermal . | . . . . . Explosive 54 | . 12 27 5 10 Electromagnetic . | . . . . . Robot Hit Streak 12 | 5 12 12 3 4 Robot Miss Streak 4 | 1 4 1 1 4 Penetration Max . | . . . . . Secondary Targets 2 | . 2 . . . Max Gunslinging Chain 1 | . 1 . . . Shots Hit Robots 81 | 9 43 18 3 8 Core Hits 92 | 3 32 37 10 10 Critical Kills 1 | . 1 . . . Critical Parts Destroyed . | . . . . . Critical Strikes 1 | . 1 . . . Destroy 1 | . 1 . . . Melee Attacks 1 | . . . . 1 Impact . | . . . . . Slashing . | . . . . . Piercing . | . . . . . Sneak Attacks . | . . . . . Combat Hostiles . | . . . . . Follow-up Attacks . | . . . . . Damage Inflicted 3016 | 114 906 1421 303 272 Guns 515 | 114 371 . . 30 Cannons . | . . . . . Explosions 2488 | . 530 1419 303 236 Melee . | . . . . . Ramming 13 | . 5 2 . 6 Kinetic 515 | 114 371 . . 30 Thermal . | . . . . . Explosive 2488 | . 530 1419 303 236 Electromagnetic . | . . . . . Impact . | . . . . . Slashing . | . . . . . Piercing . | . . . . . Highest Corruption . | . . . . . Average Corruption . | . . . . . Corruption Purged . | . . . . . Corruption Blocked . | . . . . . Overload Shots . | . . . . . Overflow Damage 47 | . 6 40 1 . Projectiles . | . . . . . Explosions 47 | . 6 40 1 . Melee . | . . . . . Knockbacks . | . . . . . Impact . | . . . . . Kinetic . | . . . . . Secondary . | . . . . . Self-Inflicted Damage 216 | . 52 94 9 61 Shots 13 | . 3 7 1 2 Rammed 2 | . . 1 . 1 Targets Rammed 4 | . 2 1 . 1 Kicked 2 | . 2 . . . Crushed . | . . . . . Highest Temperature 66 | . 66 8 . 3 Average Temperature 20 | . 23 4 . 3 Received Heat Transfer 810 | . 312 156 9 333 Siege Activations . | . . . . . Robots Corrupted . | . . . . . Combat Hostiles . | . . . . . Parts Fried . | . . . . . Impact Corruptions . | . . . . . Robots Melted . | . . . . . Combat Hostiles . | . . . . . Parts Melted . | . . . . . Heat Transferred . | . . . . . Parts Sabotaged . | . . . . . Parts Stolen . | . . . . . Parts Stripped . | . . . . . Power Chain Reactions . | . . . . . Alert | -11 -10 -9 -9 -8 ------- Run | Yrd Mat Mat Min Mat Peak Influence 381 | 10 189 381 180 262 Initial 70 | . 6 . 31 70 Average 95 | 4 44 183 102 141 Maximum Alert Level 1 | . . 1 . 1 Low Security (%) 84 | 100 100 58 100 64 Level 1 15 | . . 41 . 35 Level 2 . | . . . . . Level 3 . | . . . . . Level 4 . | . . . . . Level 5 . | . . . . . High Security . | . . . . . Max Security . | . . . . . Squads Dispatched 5 | . 2 2 . 1 Investigation 3 | . 2 1 . . Extermination . | . . . . . Reinforcement 2 | . . 1 . 1 Assault . | . . . . . Garrison . | . . . . . Intercept . | . . . . . Searches Triggered . | . . . . . Construction Impeded 2 | . . 1 . 1 Haulers Reinforced . | . . . . . Active Scanning Responses . | . . . . . Cargo Convoy Interrupts . | . . . . . Stealth | -11 -10 -9 -9 -8 --------- Run | Yrd Mat Mat Min Mat Distress Signals 1 | . . 1 . . Communications Jammed . | . . . . . Distress Signals . | . . . . . Times Spotted 61 | . 16 19 4 22 Peak Tracking Total 8 | . 5 6 2 8 Tactical Retreats 5 | . . . . 5 Traps | -11 -10 -9 -9 -8 ------- Run | Yrd Mat Mat Min Mat Traps Triggered 2 | . 1 1 . . Indirectly . | . . . . . Trap Hack Attempts . | . . . . . Triggered . | . . . . . Disarmed 6 | . 6 . . . Reprogrammed . | . . . . . Reused . | . . . . . Traps Extracted . | . . . . . Installed . | . . . . . Triggered . | . . . . . Machines | -11 -10 -9 -9 -8 ---------- Run | Yrd Mat Mat Min Mat Machines Disabled 2 | . . 2 . . Max in Single Turn 1 | . . 1 . . Garrison Access 1 | . . . . 1 Machines Repaired . | . . . . . Machines Dismantled . | . . . . . Machines Sabotaged . | . . . . . Overloaded Fab Kills . | . . . . . Hacking | -11 -10 -9 -9 -8 --------- Run | Yrd Mat Mat Min Mat Machines Accessed 15 | . 9 3 . 3 Terminals 11 | . 7 3 . 1 Fabricators . | . . . . . Repair Stations 1 | . . . . 1 Recycling Units 2 | . 2 . . . Scanalyzers . | . . . . . Garrison Access 1 | . . . . 1 Total Hacks 58 | . 26 15 . 17 Successful 29 | . 10 7 . 12 Failed 29 | . 16 8 . 5 Catastrophic 9 | . 5 2 . 2 Database Lockouts . | . . . . . Manual 12 | . 8 4 . . Terminals 44 | . 22 15 . 7 Fabricators . | . . . . . Repair Stations 9 | . . . . 9 Recycling Units 4 | . 4 . . . Scanalyzers . | . . . . . Garrison Access 1 | . . . . 1 Terminal Hacks 18 | . 8 7 . 3 Record 4 | . 1 . . 3 Robot Analysis 1 | . . 1 . . Prototype ID Bank 1 | . . 1 . . Emergency Access Points 1 | . 1 . . . Terminal Index 1 | . 1 . . . Alert Level 3 | . . 3 . . Unreport Threat 3 | . 1 2 . . Locate Traps 1 | . 1 . . . Disarm Traps 2 | . 2 . . . Recall Investigation 1 | . 1 . . . Fabricator Hacks . | . . . . . Repair Station Hacks 8 | . . . . 8 Scan Component 4 | . . . . 4 Repair 4 | . . . . 4 Recycling Unit Hacks 2 | . 2 . . . Retrieve Components 2 | . 2 . . . Scanalyzer . | . . . . . Garrison Access Hacks 1 | . . . . 1 Seal Access 1 | . . . . 1 Unauthorized Hacks . | . . . . . Terminals . | . . . . . Fabricators . | . . . . . Repair Stations . | . . . . . Recycling Units . | . . . . . Scanalyzers . | . . . . . Garrison Access . | . . . . . Data Cores Recovered 2 | . 1 1 . . Used . | . . . . . Hacking Detections 13 | . 8 3 . 2 Full Trace Events 1 | . 1 . . . Feedback Events . | . . . . . Feedback Blocked . | . . . . . Robot Schematics Acquired . | . . . . . Robots Built . | . . . . . Authchips . | . . . . . Time . | . . . . . Total Robot Build Rating . | . . . . . Part Schematics Acquired . | . . . . . Parts Built . | . . . . . Authchips . | . . . . . Time . | . . . . . Total Part Build Rating . | . . . . . Parts Repaired 4 | . . . . 4 Time 128 | . . . . 128 Parts Recycled . | . . . . . Recycled Matter . | . . . . . Retrieved Matter . | . . . . . Retrieved Components 12 | . 12 . . . Parts Scanalyzed . | . . . . . Part Schematics Acquired . | . . . . . Parts Damaged . | . . . . . Bothacking | -11 -10 -9 -9 -8 ------------ Run | Yrd Mat Mat Min Mat Used RIF Installer . | . . . . . Robots Hacked 1 | . . . . 1 Non-combat . | . . . . . Combat 1 | . . . . 1 Robot Hacks Applied 1 | . . . . 1 parse_system 1 | . . . . 1 Relay Couplers Released . | . . . . . Fabnet Peak Effective % . | . . . . . Robots Rewired . | . . . . . Allies Hacked . | . . . . . Hacks Repelled . | . . . . . Allies | -11 -10 -9 -9 -8 -------- Run | Yrd Mat Mat Min Mat Total Allies . | . . . . . Largest Group . | . . . . . Highest-Rated Group . | . . . . . Highest-Rated Ally . | . . . . . Total Orders . | . . . . . Ally Attacks . | . . . . . Total Damage . | . . . . . Kills . | . . . . . Allies Corrupted . | . . . . . Allies Melted . | . . . . . Intel | -11 -10 -9 -9 -8 ------- Run | Yrd Mat Mat Min Mat Robot Analysis Total 1 | . . 1 . . Derelict Logs Recovered 1 | . . . 1 . Drone Launches . | . . . . . Drone Recoveries . | . . . . . Exploration | -11 -10 -9 -9 -8 ------------- Run | Yrd Mat Mat Min Mat Turns Passed 2635 | 109 1271 605 202 448 Spaces Moved 1331 | 62 632 332 133 172 Core 25 | 23 . . . 2 Treads 755 | 39 110 303 133 170 Legs 551 | . 522 29 . . Wheels . | . . . . . Hover . | . . . . . Flight . | . . . . . Fastest Speed 50 | 50 120 145 145 145 Average Speed 162 | 119 179 154 145 148 Slowest Speed 400 | 160 190 330 145 400 Overloaded Moves . | . . . . . Propulsion Burnouts . | . . . . . Robots Hopped . | . . . . . Cave-ins Triggered . | . . . . . Exploration Rate (%) 35 | 4 96 30 31 17 Regions Visited 4 Branch Regions 1 Pre-discovered Areas . | . . . . . Known Exits Taken 1 | . . . 1 . Unknown Exits Taken 3 | 1 1 1 . . Scrap Searched . | . . . . . Spaces Dug . | . . . . . Terrain Destroyed 287 | . 50 119 46 72 Melee . | . . . . . Projectile . | . . . . . AOE 287 | . 50 119 46 72 Terrain Rammed . | . . . . . Walls Destroyed . | . . . . . Machines Disabled . | . . . . . Actions | -11 -10 -9 -9 -8 --------- Run | Yrd Mat Mat Min Mat Total 1671 | 84 705 397 137 348 Wait 140 | . . . . 140 Move 1327 | 61 631 331 132 172 Hop . | . . . . . Pick Up 47 | 7 18 15 . 7 Fast Attach 1 | 1 . . . . Attach 20 | 6 2 4 . 8 Detach . | . . . . . Swap 22 | 1 10 9 . 2 Drop 15 | 1 3 10 . 1 Fire 94 | 7 39 27 5 16 Melee 1 | . . . . 1 Ram . | . . . . . Kick 2 | . 2 . . . Crush 2 | . . 1 . 1 Escape Stasis . | . . . . . Rewire . | . . . . . Trap . | . . . . . Miscellaneous . | . . . . . Route ------- -11/Scrapyard -10/Materials (discovered 5 exits: *Mat x3 / [*Min x2]) -9/Materials (discovered 2 exits: [*Min] / [*Sto]) -9/Mines -8/Materials History --------- Turn | Location | Event 12 | -11/Scrapyard | Discovered new exit (range 16) 110 | -11/Scrapyard | Entered Materials 304 | -10/Materials | Build established: Mutant 543 | -10/Materials | Discovered new exit (range 11) 655 | -10/Materials | Build established: Scavenger-Mutant 688 | -10/Materials | Discovered new exit (range 13) 938 | -10/Materials | Discovered new exit (range 14) 1173 | -10/Materials | Discovered new exit (range 8) 1367 | -10/Materials | Discovered new exit (range 3) 1381 | -10/Materials | Entered another Materials area 1381 | -9/Materials | Evolved 2 slots: Utility x2 1402 | -9/Materials | Discovered new exit (range 16) 1838 | -9/Materials | Discovered new exit (range 14) 1985 | -9/Materials | Build established: Hacker-Mutant 1986 | -9/Materials | Entered Mines 2031 | -9/Mines | Identified exit to Materials 2188 | -9/Mines | Entered Materials 2188 | -8/Materials | Evolved 2 slots: Propulsion x1, Utility x1 2243 | -8/Materials | Repaired Grenade Launcher 2283 | -8/Materials | Repaired Adv. Treads 2322 | -8/Materials | Repaired Adv. Treads 2350 | -8/Materials | Repaired Lgt. Armor Plating 2632 | -8/Materials | Core integrity fell below 50% 2636 | -8/Materials | Self-destructed Last Messages --------------- Critical hit (Burn: +37). K-01 Serf collects debris. System Shield severed. K-01 Serf collects debris. Jacked L-31 Rogue... >>parse_system Reading system data... K-01 Serf destroyed. Critical hit (Burn: +37). S-10 Pest destroyed. K-01 Serf collects debris. Lgt. Armor Plating destroyed. Adv. Treads severed. K-01 Serf collects debris. Datajack destroyed. Critical hit (Burn: +37). S-10 Pest destroyed. K-01 Serf collects debris. Critical hit (Burn: +37). K-01 Serf collects debris. Map ----- +----------------------------------------------------+ | | | | | | | | | | | | | | | | | | | | | | | | | | | | | | | | | ?????????????????????????????????????????????????? | | ?????????????????????????????????????????????????? | | ?????????????????????????????????????????????????? | | ????????????????????##########???????????????????? | | ????????????????????# #???????????????????? | | ###?????????????????# #???????????????????? | | # = ###+#+######### #???????????????????? | | # Y #???????????????????? | | % + g=k #???????????????????? | | #*%= @ #???????????????????? | | # ???####### ##/####s%gl #???????????????????? | | ?????###????# ## ## *[ #???????????????????? | | ????? ????# ## ## #???????????????????? | | ????"" !????# ## ###########???????????????????? | | ????"" #???# ## #?????????????????????????????? | | ????"" #???# ## #?????????????????????????????? | | ???""" =#???# ## #?????????????????????????????? | | ????"" #???# ## #?????????????????????????????? | | ????"" *#???# ######?????????????????????????????? | | ?????" #???# #??????????????????????????????????? | | ?????? #???# #??????????????????????????????????? | | ??????#/#??##%##?????????????????????????????????? | | ####### #### #####?????????????????????????????? | | T ????????????????????????? | | ############ ##### #???????????????????????????? | | ???????????## ##?????????????????????????????????? | | ????????????# #??????????????????????????????????? | | ????????????# #??????????????????????????????????? | | ????????????# #??????????????????????????????????? | | ???????????? #??????????????????????????????????? | | ????????????# #??????????????????????????????????? | | ????????????? #??????????????????????????????????? | | ????????????? ???????????????????????????????????? | | ????????????? ???????????????????????????????????? | +----------------------------------------------------+ Best States ------------- Heat Dissipation 45 Energy Generation 10 Energy Capacity 250 Matter Stores 300 Matter Capacity 300 Sight Range 16 Terrain Scan Range 16 Terrain Scan Density 10 ECM Strength 1 Armor Coverage 150 Evasion (%) 55 Recoil Reduction 3 Defensive Hacking 30 Item Schematics ----------------- None Robot Schematics ------------------ None Fabricated ------------ Nothing Alien Tech Used ----------------- None Achievements -------------- None Challenges ------------ None Game ------ Seed EnhancedFissionCompressor Manual? 0 Play Time 00:38:43 Cumulative 22.8 hours Start 2024.03.31 @ 20:24:52 End 2024.03.31 @ 23:05:57 Sessions 3 Manual Loads 0 Difficulty Rogue Special Mode None Game No. 47 Rogue 44 Adventurer 0 Explorer 3 Win Type - Total 0 Types 0/0/0/0/0/0/0/0/0 Lore% 20 Gallery% 29 Achievement% 24 Wizard Run 0 Options --------- Layout 0 ASCII 0 Keyboard 0 Movement Mouse Keybinds 0 Fullscreen 2 Font 18/SmallcapsGlow Map View 76x50 Zoom Use 0% Tactical HUD 0 Map Filters NONE Filters NONE Steam 1 RUN: c480a090-b521-4bae-8dc7-04ee8d3ad455